{"text_format":"1","workbook":"xlsx","n_sheets":1,"sheets":["price bid "],"not_rendered":{"charts":0,"images":0,"macros":1,"external_links":0,"defined_names":0,"comments":0,"pivot_tables":0},"unopened":[],"bounds":{"document_bytes":16777216,"sheet_cells":100000,"rows_first":2000,"rows_last":500,"rows_between":2000,"halvings":0,"cell_chars":16384,"cell_head_chars":4096},"cells_cut":0,"cells_raw":0,"read":"whole","date_system":"1900"}

{"sheet":"price bid ","index":0,"n_rows":30,"n_cols":7,"rows_kept":30,"cut":false,"hidden":false,"merged":[[26,1,26,6],[24,1,24,6],[25,1,25,6],[0,0,0,6],[3,0,3,6],[1,0,1,6],[2,0,2,6],[4,0,4,2],[4,4,4,6],[22,2,22,6],[21,3,21,5]]}
["    BHARAT HEAVY ELECTRICAL LIMITED , JHANSI              "]
["FACTORY CIVIL DEPARTMENT"]
["PRICE BID (JS 146)"]
["Name of work:-  Repair & Maintenance work of material stacking platforms & other concrete floors inside factory area.  "]
["Tender Enq No-FCX/TW/22/01"]
["Sl. No.","Description of Work","% Allocation (Item-wise)","Unit ","Quantity ","Rate per Unit (in Rs.)","Amount (in Rs.)"]
[1,"Carriage of Earth  up 1 km .",0.10583432315797053,"Cum",5,{"$f":"ROUND(G7/E7,2)","v":0},{"$f":"ROUND($G$22*C7%,2)","v":0}]
[{"$f":"A7+1","v":2},"Earth work in excavation by mechanical means (Hydraulic excavator)/manual means over areas (exceeding 30 cm in depth, 1.5 m in width as well as 10 sqm on plan) including getting out and disposal of excavated earth lead upto 50 m and lift upto 1.5 m, as directed by Engineer-in-charge.\n All kinds of soil",0.24398718124001928,"Cum",9,{"$f":"ROUND(G8/E8,2)","v":0},{"$f":"ROUND($G$22*C8%,2)","v":0}]
[3,"Providing and laying in position cement concrete of specified grade excluding the cost of centering and shuttering - All work up to plinth level :1:3:6 (1 Cement : 3 coarse sand (zone-III): 6 graded stone aggregate 40 mm nominal size).",29.299576955436024,"Cum",42,0,0]
[4,"Providing and laying cement concrete in retaining walls, return walls, walls (any thickness) including attached pilasters, columns, piers, abutments, pillars, posts, struts, buttresses, string or lacing courses, parapets, coping, bed blocks, anchor blocks, plain window sills, fillets, sunken floor etc., up to floor five level, excluding the cost of centering, shuttering and finishing :1:2:4 (1 Cement : 2 coarse sand : 4 graded stone aggregate 20 mm nominal size).",0.92582109526664669,"Cum",1,0,0]
[5,"Providing and laying in position specified grade of reinforced cement concrete, excluding the cost of centering, shuttering, finishing and reinforcement - All work up to plinth level :1:2:4 (1 cement : 2 coarse sand : 4 graded stone aggregate 20 mm nominal size).",28.841762254051972,"Cum",38,0,0]
[6,"Steel reinforcement for R.C.C. work including straightening, cutting, bending, placing in position and binding all complete upto plinth level.Thermo-Mechanically Treated bars of grade Fe-500D or more.",3.5955688458191291,"Kg",1520,0,0]
[7,"Brick work with common burnt clay F.P.S. (non modular) bricks of class designation 7.5 in foundation and plinth in:Cement mortar 1:6 (1 cement : 6 coarse sand)",5.9020575552749195,"Cum",7,0,0]
[8,"Brick work with common burnt clay F.P.S. (non modular) bricks of class designation 7.5 in superstructure above plinth level up to floor V level in all shapes and sizes in Cement mortar 1:6 (1 cement : 6 coarse sand)",5.1102889645085456,"Cum",5,0,0]
[9,"52 mm thick cement concrete flooring with concrete hardener topping, under layer 40 mm thick cement concrete 1:2:4 (1 cement : 2 coarse sand : 4 graded stone aggregate 20 mm nominal size) and top layer 12 mm thick cement hardener consisting of mix 1:2 (1 cement hardener mix : 2 graded stone aggregate 6 mm nominal size) by volume, hardening compound mixed @ 2 litre per 50 kg of cement or as per manufacturer's\nspecifications. This includes cost of cement slurry, but excluding the cost of nosing of steps etc. complete.",13.806409242235716,"sqm",163,0,0]
[10,"12 mm cement plaster of mix :1:6 (1 cement: 6 fine sand)",2.0124018799378591,"Sqm",69,0,0]
[11,"15 mm cement plaster on the rough side of single or half brick wall of mix :1:6 (1 cement: 6 fine sand)",1.774028201134203,"Sqm",53,0,0]
[12,"Demolishing cement concrete manually/ by mechanical means including disposal of material within 50 metres lead as per direction of Engineer - in - charge. Nominal concrete 1:3:6 or richer mix (i/c equivalent design mix)",1.0730334747270134,"Cum",5,0,0]
[13,"Demolishing R.C.C. work manually/ by mechanical means including stacking of steel bars and disposal of unserviceable material within 50 metres lead as per direction of Engineer - in- charge.",1.5653987670269067,"Cum",5,0,0]
[14,"Demolishing brick work manually/ by mechanical means including stacking of serviceable material and disposal of unserviceable material within 50 metres lead as per direction of Engineer-in-charge. In cement mortar",0.36278981428260992,"Cum",2,0,0]
[15,"Items covered in DSR-2016 but not covered above ",5.3810414459004736,"DSR-2016",25000,0,0]
[null,"Total ",1,"Total amount quoted by bidder"]
[null,"IN WORDS",{"$f":"rup(G22)","v":0}]
[null,"Note -GST extra as applicable"]
[null,"1. Bidder has to quote in above unlocked cell (G-22) only. Item rate shall be calculated automatically. Calculated item rates upto four decimal points may be adjusted w.r.t. gross total amount and it shall be the itemwise final rate for  execution of contract and all other purposes."]
[null,"2. Quoted gross total amount should be considered only if quoted in this excel sheet and print out of this should only be considered for evaluation.  If Price is quoted in any other format other than the Excel Sheet enclosed to the NIT , the offer of the bidder  will be rejected"]
[null,"3.During the execution , the quantity of various items may vary to any extent depending on requirement of work/site and as per discretion of BHEL."]
[]
[]
[null,null,null,"(Signature and Seal of  Contractor  )"]